lending/lending_fUSD_20250131
["ID","MTS","AMOUNT","RATE_DAILY","PERIOD"]
[351047384,1738306283940,-502.71,0.00020547,3]
[351047385,1738306283950,-806.0,0.00020547,3]
[351047386,1738306283961,-500.0,0.00020547,3]
[351047387,1738306283972,-500.0,0.00020547,3]
[351047388,1738306283982,-516.74,0.00020547,3]
[351047389,1738306283992,-1115.4,0.00020547,3]
[351047390,1738306284002,-726.75,0.00020547,3]
[351047391,1738306284012,-755.18,0.00020547,3]
[351047392,1738306284026,-618.65,0.00020547,3]
[351047393,1738306284036,-917.2,0.00020547,3]
[351047394,1738306284046,-847.88,0.00020547,3]
[351047395,1738306284056,-1239.48,0.00020547,3]
[351047396,1738306284066,-500.0,0.00020547,3]
[351047397,1738306284075,-633.32,0.00020547,3]
[351047398,1738306284085,-1824.23,0.00020547,3]
[351047399,1738306284095,-500.0,0.00020547,3]
[351047400,1738306284105,-500.0,0.00020547,3]
[351047401,1738306284114,-500.0,0.00020547,3]
[351047402,1738306284125,-500.0,0.00020547,3]
[351047403,1738306284134,-821.59,0.00020547,3]
[351047404,1738306284144,-500.0,0.00020547,3]
[351047405,1738306284153,-318.13957165,0.00020547,3]
[351047406,1738306284163,-1462.22,0.00020547,3]
[351047407,1738306284173,-500.0,0.00020547,3]
[351047408,1738306284183,-815.19,0.00020547,3]
[351047409,1738306284192,-500.0,0.00020547,3]
[351047410,1738306284201,-720.68,0.00020547,3]
[351047411,1738306284211,-500.0,0.00020547,3]
[351047412,1738306284222,-1052.43,0.00020547,3]
[351047413,1738306284232,-500.0,0.00020547,3]
[351047414,1738306284243,-500.0,0.00020547,3]
[351047415,1738306284253,-519.86,0.00020547,3]
[351047416,1738306284263,-500.0,0.00020547,3]
[351047417,1738306284272,-762.44,0.00020547,3]
[351047418,1738306284282,-500.0,0.00020547,3]
[351047419,1738306284291,-500.0,0.00020547,3]
[351047420,1738306284300,-500.0,0.00020547,3]
[351047421,1738306284310,-596.94,0.00020547,3]
[351047422,1738306284320,-500.0,0.00020547,3]
[351047423,1738306284330,-870.85,0.00020547,3]
[351047424,1738306284340,-3120.26,0.00020547,3]
[351047425,1738306284350,-514.66,0.00020547,3]
[351047426,1738306284359,-500.0,0.00020547,3]
[351047427,1738306284369,-1059.42,0.00020547,3]
[351047428,1738306284379,-955.99,0.00020547,3]
[351047429,1738306284388,-696.01,0.00020547,2]
[351047430,1738306284398,-920.05,0.00020547,3]
[351047431,1738306284408,-500.0,0.00020547,3]
[351047432,1738306284418,-500.0,0.00020547,3]
[351047433,1738306284427,-1737.45,0.00020547,3]
[351047434,1738306284437,-883.16,0.00020547,3]
[351047435,1738306284446,-2134.12,0.00020547,3]
[351047436,1738306284456,-500.0,0.00020547,3]
[351047437,1738306284465,-839.72,0.00020547,3]
[351047438,1738306284476,-1385.09,0.00020547,3]
[351047439,1738306284486,-1169.41,0.00020547,3]
[351047440,1738306284495,-1394.44,0.00020547,3]
[351047441,1738306284505,-500.0,0.00020547,3]
[351047442,1738306284515,-500.0,0.00020547,3]
[351047443,1738306284524,-3348.08,0.00020547,3]
[351047444,1738306284534,-924.15,0.00020547,3]
[351047445,1738306284543,-500.0,0.00020547,3]
[351047446,1738306284553,-1127.44,0.00020547,3]
[351047447,1738306284562,-674.08,0.00020547,3]
[351047448,1738306284572,-3250.85,0.00020547,3]
[351047449,1738306284582,-1133.24,0.00020547,3]
[351047450,1738306284591,-1845.5,0.00020547,3]
[351047451,1738306284600,-500.0,0.00020547,3]
[351047452,1738306284610,-1954.11,0.00020547,3]
[351047453,1738306284620,-500.0,0.00020547,3]
[351047454,1738306284630,-500.0,0.00020547,3]
[351047455,1738306284639,-500.0,0.00020547,3]
[351047456,1738306284649,-500.0,0.00020547,3]
[351047457,1738306284659,-500.0,0.00020547,3]
[351047458,1738306284669,-645.35,0.00020547,3]
[351047459,1738306284678,-942.8,0.00020547,3]
[351047460,1738306284688,-4610.94,0.00020547,3]
[351047461,1738306284697,-6387.1,0.00020547,3]
[351047462,1738306284707,-594.96,0.00020547,3]
[351047463,1738306284717,-519.2,0.00020547,3]
[351047464,1738306284728,-582.14,0.00020547,3]
[351047465,1738306284739,-766.14,0.00020547,3]
[351047466,1738306284748,-11987.44,0.00020547,3]
[351047467,1738306284758,-1269.84,0.00020547,3]
[351047468,1738306284767,-349.34069022,0.00020547,3]
[351047469,1738306284777,-1367.61,0.00020547,3]
[351047470,1738306284787,-937.78,0.00020547,3]
[351047471,1738306284796,-1640.43,0.00020547,3]
[351047472,1738306284806,-540.26,0.00020547,3]
[351047473,1738306284815,-1981.83,0.00020547,3]
[351047474,1738306284825,-8948.91,0.00020547,3]
[351047475,1738306284835,-2567.08,0.00020547,3]
[351047476,1738306284844,-631.98,0.00020547,3]
[351047477,1738306284854,-750.68,0.00020547,3]
[351047478,1738306284864,-2616.13,0.00020547,3]
[351047479,1738306284874,-1071.39,0.00020547,3]
[351047480,1738306284884,-1260.83,0.00020547,3]
[351047481,1738306284893,-500.0,0.00020547,3]
[351047482,1738306284903,-2220.27,0.00020547,3]
[351047483,1738306284913,-500.0,0.00020547,3]
[351047484,1738306284923,-500.0,0.00020547,3]
[351047485,1738306284933,-595.77,0.00020547,3]
[351047486,1738306284943,-1589.24,0.00020547,3]
[351047487,1738306284953,-1712.2,0.00020547,3]
[351047488,1738306284963,-1903.2,0.00020547,3]
[351047489,1738306284974,-3227.95,0.00020547,3]
[351047490,1738306284984,-500.0,0.00020547,3]
[351047491,1738306284995,-698.07,0.00020547,3]
[351047492,1738306285006,-1637.86,0.00020547,3]
[351047493,1738306285018,-500.0,0.00020547,3]
[351047494,1738306285028,-1085.18,0.00020547,3]
[351047495,1738306285038,-636.13,0.00020547,3]
[351047496,1738306285048,-662.78,0.00020547,3]
[351047497,1738306285058,-6654.01,0.00020547,3]
[351047498,1738306285068,-4419.8,0.00020547,3]
[351047499,1738306285078,-2914.04,0.00020547,3]
[351047500,1738306285089,-500.0,0.00020547,3]
[351047501,1738306285100,-1271.68,0.00020547,3]
[351047502,1738306285110,-922.13,0.00020547,3]
[351047503,1738306285119,-535.94,0.00020547,3]
[351047504,1738306285130,-795.93,0.00020547,3]
[351047505,1738306285140,-7050.63,0.00020547,3]
[351047506,1738306285150,-674.93,0.00020547,3]
[351047507,1738306285160,-2874.0,0.00020547,3]
[351047508,1738306285171,-1253.83,0.00020547,3]
[351047509,1738306285181,-878.83,0.00020547,3]
[351047510,1738306285191,-4857.43,0.00020547,3]
[351047511,1738306285200,-2490.49,0.00020547,3]
[351047512,1738306285210,-1106.34,0.00020547,3]
[351047513,1738306285219,-848.25,0.00020547,3]
[351047514,1738306285229,-2234.81,0.00020547,3]
[351047515,1738306285239,-789.12,0.00020547,3]
[351047516,1738306285248,-5756.47,0.00020547,3]
[351047517,1738306285258,-6250.12,0.00020547,3]
[351047518,1738306285267,-500.0,0.00020547,3]
[351047519,1738306285277,-500.0,0.00020547,3]
[351047520,1738306285287,-709.82,0.00020547,3]
[351047521,1738306285298,-640.66,0.00020547,2]
[351047522,1738306285307,-3870.78,0.00020547,3]
[351047523,1738306285317,-2292.42,0.00020547,3]
[351047524,1738306285326,-3696.7,0.00020547,3]
[351047525,1738306285336,-500.0,0.00020547,3]
[351047526,1738306285346,-1183.26,0.00020547,3]
[351047527,1738306285355,-6297.68,0.00020547,3]
[351047528,1738306285365,-500.0,0.00020547,3]
[351047529,1738306285374,-500.0,0.00020547,3]
[351047530,1738306285383,-500.0,0.00020547,3]
[351047531,1738306285394,-503.64,0.00020547,3]
[351047532,1738306285405,-1370.04,0.00020547,3]
[351047533,1738306285415,-1253.5,0.00020547,3]
[351047534,1738306285425,-5825.14,0.00020547,3]
[351047535,1738306285435,-2653.46,0.00020547,3]
[351047536,1738306285444,-3929.43,0.00020547,3]
[351047537,1738306285455,-1666.5,0.00020547,3]
[351047538,1738306285619,-500.0,0.00020547,3]
[351047539,1738306285643,-2750.04,0.00020547,3]
[351047540,1738306285652,-1164.08,0.00020547,3]
[351047541,1738306285661,-2391.97,0.00020547,3]
[351047542,1738306285671,-2244.68,0.00020547,3]
[351047543,1738306285682,-500.0,0.00020547,3]
[351047544,1738306285692,-3028.69,0.00020547,3]
[351047545,1738306285703,-3515.3,0.00020547,3]
[351047546,1738306285713,-2135.03,0.00020547,3]
[351047547,1738306285723,-3198.65,0.00020547,3]
[351047548,1738306285733,-1116.45,0.00020547,3]
[351047549,1738306285742,-1464.88,0.00020547,3]
[351047550,1738306285753,-500.0,0.00020547,3]
[351047551,1738306285763,-721.78,0.00020547,3]
[351047552,1738306285772,-732.68,0.00020547,3]
[351047553,1738306285781,-1706.56,0.00020547,3]
[351047554,1738306285793,-1804.53,0.00020547,3]
[351047555,1738306285802,-7789.26,0.00020547,3]
[351047556,1738306285812,-500.0,0.00020547,3]
[351047557,1738306285821,-816.3,0.00020547,3]
[351047558,1738306285832,-1185.11,0.00020547,3]
[351047559,1738306285841,-500.0,0.00020547,3]
[351047560,1738306285851,-2669.85,0.00020547,3]
[351047561,1738306285861,-500.0,0.00020547,3]
[351047562,1738306285870,-1265.83,0.00020547,3]
[351047563,1738306285879,-1014.36,0.00020547,3]
[351047564,1738306285889,-532.0,0.00020547,3]
[351047565,1738306285899,-2661.46,0.00020547,3]
[351047566,1738306285908,-500.0,0.00020547,3]
[351047567,1738306285917,-5046.06,0.00020547,3]
[351047568,1738306285926,-878.62,0.00020547,3]
[351047569,1738306285936,-2962.42,0.00020547,3]
[351047570,1738306285945,-915.16,0.00020547,3]
[351047571,1738306285954,-1200.49,0.00020547,9]
[351047572,1738306285963,-3780.57,0.00020547,3]
[351047573,1738306285973,-1587.96,0.00020547,3]
[351047574,1738306285982,-1627.91,0.00020547,3]
[351047575,1738306285992,-500.0,0.00020547,3]
[351047576,1738306286001,-760.33,0.00020547,3]
[351047577,1738306286010,-925.73,0.00020547,3]
[351047578,1738306286022,-1648.54,0.00020547,3]
[351047579,1738306286032,-1648.91,0.00020547,3]
[351047580,1738306286042,-500.0,0.00020547,3]
[351047581,1738306286056,-981.99,0.00020547,3]
[351047582,1738306286066,-500.0,0.00020547,3]
[351047583,1738306286076,-1799.13,0.00020547,3]
[351047584,1738306286086,-1292.12,0.00020547,3]
[351047585,1738306286095,-776.44,0.00020547,3]
[351047586,1738306286105,-2207.59,0.00020547,3]
[351047587,1738306286114,-559.42,0.00020547,3]
[351047588,1738306286124,-500.0,0.00020547,3]
[351047589,1738306286134,-1064.84,0.00020547,3]
[351047590,1738306286143,-1741.92,0.00020547,3]
[351047591,1738306286153,-500.0,0.00020547,3]
[351047592,1738306286163,-3067.11,0.00020547,3]
[351047593,1738306286172,-609.2,0.00020547,3]
[351047594,1738306286183,-4674.57,0.00020547,3]
[351047595,1738306286192,-686.33,0.00020547,3]
[351047596,1738306286201,-2396.66,0.00020547,3]
[351047597,1738306286210,-905.59,0.00020547,3]
[351047598,1738306286220,-150.0,0.00020548,2]
[351047599,1738306286231,-177.69,0.00020548,2]
[351047600,1738306286240,-205.178142,0.00020548,2]
[351047601,1738306286250,-256.46,0.00020548,2]
[351047602,1738306286260,-150.0,0.00020563,4]
[351047603,1738306286269,-150.0,0.00020563,4]
[351047604,1738306286279,-150.0,0.00020563,4]
[351047605,1738306286288,-560.48814849,0.0002061,3]
[351047606,1738306286298,-150.0,0.00020647,4]
[351047607,1738306286311,-150.0,0.00020656,4]
[351047608,1738306286320,-478.7179557,0.0002067,2]
[351047609,1738306286330,-478.7179557,0.0002067,2]
[351047610,1738306286340,-931.1858955,0.0002067,2]
[351047611,1738306286349,-931.1858955,0.0002067,2]
[351047612,1738306286358,-2734.2446176,0.0002067,2]
[351047613,1738306286367,-2734.2446176,0.0002067,2]
[351047614,1738306286377,-4999.999999,0.00020678,3]
[351047615,1738306286386,-225.3174484,0.00020684,2]
[351047616,1738306286395,-496075.46862788,0.00020684,2]
[351047617,1738306286829,-862.7749996,0.00019178,2]
[351047618,1738306286840,-942.87355834,0.00019178,2]
[351047619,1738306286862,-404.39144206,0.00019178,2]
[351047620,1738306286871,-141.13933223,0.00019315,3]
[351047621,1738306286890,-299.89956351,0.00019315,3]
[351047622,1738306286902,-232.43110426,0.00019315,3]
[351047623,1738306286911,-196.19100578,0.00019315,3]
[351047624,1738306286922,-1133.05,0.00019315,3]
[351047625,1738306286951,-880.79899422,0.00019315,3]
[351047626,1738306286960,-673.47,0.00019452,3]
[351047627,1738306286971,-2210.04,0.00019452,3]
[351047628,1738306286980,-673.47,0.00019589,3]
[351047629,1738306286989,-2210.04,0.00019589,3]
[351047630,1738306286998,-673.47,0.00019726,3]
[351047631,1738306287008,-2210.04,0.00019726,3]
[351047632,1738306287020,-673.47,0.00019863,3]
[351047633,1738306287029,-2210.04,0.00019863,3]
[351047634,1738306287038,-7963.95662564,0.00020684,2]
[351047635,1738306287065,-4271.50150775,0.00020684,2]
[351047636,1738306287461,-500.0,0.00019178,2]
[351047637,1738306287472,-291.36,0.00019315,3]
[351047638,1738306287481,-2210.04,0.0002,3]
[351047639,1738306287491,-673.47,0.0002,3]
[351047640,1738306287500,-673.47,0.00020136,3]
[351047641,1738306287509,-2210.04,0.00020136,3]
[351047642,1738306287519,-2210.04,0.00020273,3]
[351047643,1738306287528,-673.47,0.00020273,3]
[351047644,1738306287537,-2210.04,0.0002041,3]
[351047645,1738306287547,-673.47,0.0002041,3]
[351047646,1738306287556,-673.47,0.00020547,3]
[351047647,1738306287565,-2210.04,0.00020547,3]
[351047648,1738306287574,-381460.14778156,0.00020684,2]
[351047649,1738306287584,-1515.17511864,0.00020684,2]
[351047650,1738306287595,-4464.07802659,0.00020684,2]
[351047651,1738306287606,-1092.123,0.00020684,2]
[351047652,1738306287618,-11004.95586047,0.00020684,2]
[351047653,1738306287673,-5992.78239596,0.00020684,2]
[351047654,1738306287688,-10260.0,0.00020684,2]
[351047655,1738306287700,-406.560008,0.00020684,2]
[351047656,1738306287715,-1978.04346052,0.00020684,2]
[351047657,1738306287729,-15815.55142269,0.00020684,2]
[351047658,1738306287902,-330.02661525,0.00020684,2]
[351047659,1738306287914,-10066.7224584,0.00020684,2]
[351047660,1738306287925,-3348.01662042,0.00020684,2]
[351047661,1738306287936,-524.48551069,0.00020684,2]
[351047662,1738306287949,-6006.19641439,0.00020684,2]
[351047663,1738306287959,-374.55,0.00020684,2]
[351047664,1738306288319,-323.68489218,0.00020684,2]
[351047665,1738306288329,-816.09216,0.00020684,2]
[351047666,1738306288340,-356.79000028,0.00020684,2]
[351047667,1738306288351,-3011.43425432,0.00020684,2]
[351047668,1738306288362,-3623.24055202,0.00020684,2]
[351047669,1738306288401,-2058.7914439,0.00020684,2]
[351047670,1738306288411,-309.7224929,0.00020684,2]
[351047671,1738306288424,-2218.80033958,0.00020684,2]
[351047672,1738306288434,-621.73958942,0.00020684,2]
[351047673,1738306521150,211.0,9.902e-05,2]
[351047690,1738307362114,-162.39,0.00010137,2]
[351047691,1738307362135,-150.0,0.00011151,2]
[351047692,1738307362155,-150.0,0.00011151,2]
[351047693,1738307362177,-150.0,0.00011151,2]
[351047694,1738307362197,-1645.137902,0.00013121,2]
[351047703,1738307431570,-798.84127481,0.00013121,2]
[351047704,1738307431579,-250.0,0.00013394,2]
[351047705,1738307431588,-168.1,0.00014162,2]
[351047706,1738307431597,-150.0,0.00014433,2]
[351047707,1738307431607,-561.89,0.0001636,2]
[351047708,1738307431616,-500.0,0.00017564,2]
[351047709,1738307431625,-300.0,0.00017645,2]
[351047710,1738307431634,-23890.0,0.00017646,2]
[351047711,1738307431644,-1000.0,0.00017649,2]
[351047712,1738307431653,-499.54,0.00017649,2]
[351047713,1738307431662,-167.69,0.00017703,2]
[351047714,1738307431671,-161.25,0.00017779,2]
[351047715,1738307431680,-1500.0,0.00017816,2]
[351047716,1738307431689,-250.0,0.00017915,2]
[351047717,1738307431699,-822.17,0.00017957,2]
[351047718,1738307431707,-486.4773,0.00017981,2]
[351047719,1738307431716,-1657.0,0.00018081,2]
[351047720,1738307431727,-200.0,0.00018389,2]
[351047721,1738307431736,-151.05,0.00018461,30]
[351047722,1738307431745,-631.81,0.00018486,2]
[351047723,1738307431754,-418.97,0.00018576,2]
[351047724,1738307431763,-561.89,0.00018624,2]
[351047725,1738307431772,-152.0,0.00018672,3]
[351047726,1738307431781,-150.0,0.00018703,2]
[351047727,1738307431791,-729.80156901,0.00018878,2]
[351047728,1738307431800,-300.0,0.000189,6]
[351047729,1738307431809,-150.0,0.000189,2]
[351047730,1738307431818,-1000.0,0.00018904,9]
[351047731,1738307431827,-568.96,0.00018978,2]
[351047732,1738307431836,-3846.95213021,0.00019,2]
[351047733,1738307431846,-500.0,0.0001905,2]
[351047734,1738307431854,-1000.0,0.00019078,2]
[351047735,1738307431863,-200.0,0.00019086,3]
[351047736,1738307431872,-200.0,0.00019107,3]
[351047737,1738307431881,-1437.73961425,0.00019168,2]
[351047738,1738307431892,-879.43038575,0.00019168,2]
[351047739,1738307431901,-200.0,0.00019169,3]
[351047740,1738307431910,-191.95039277,0.00019178,2]
[351047741,1738307431919,-510.45485506,0.00019178,2]
[351047742,1738307431928,-500.0,0.00019178,2]
[351047743,1738307431937,-534.88659263,0.00019178,2]
[351047744,1738307431947,-515.41072105,0.00019178,2]
[351047745,1738307431956,-500.0,0.00019178,2]
[351047746,1738307431965,-509.51242136,0.00019178,2]
[351047747,1738307431974,-500.0,0.00019178,2]
[351047748,1738307431984,-500.0,0.00019178,2]
[351047749,1738307431994,-144.55462989,0.00019178,2]
[351047750,1738307432005,-355.44537011,0.00019178,2]
[351047751,1738307432014,-500.0,0.00019178,2]
[351047753,1738307432023,-225.26744131,0.00019178,2]
[351047756,1738307432042,-274.73255869,0.00019178,2]
[351047758,1738307432052,-454.00780839,0.00019178,2]
[351047760,1738307432063,-45.99219161,0.00019178,2]
[351047762,1738307432072,-500.0,0.00019178,2]
[351047764,1738307432081,-500.0,0.00019178,2]
[351047766,1738307432090,-500.0,0.00019178,2]
[351047768,1738307432099,-500.0,0.00019178,2]
[351047770,1738307432107,-500.0,0.00019178,2]
[351047771,1738307432117,-142.24731512,0.00019178,2]
[351047774,1738307432128,-357.75268488,0.00019178,2]
[351047776,1738307432137,-500.0,0.00019178,2]
[351047778,1738307432146,-1229.024977,0.00019178,2]
[351047780,1738307432155,-500.0,0.00019178,2]
[351047783,1738307432164,-153.492444,0.00019178,2]
[351047786,1738307432173,-370.42989406,0.00019178,2]
[351047790,1738307432184,-129.57010594,0.00019178,2]
[351047792,1738307432193,-156.034424,0.00019178,2]
[351047795,1738307432203,-190.8660084,0.00019178,2]
[351048307,1738307437496,-621.3507266,0.00019178,2]
[351048309,1738307437505,-500.0,0.00019178,2]
[351048310,1738307437515,-500.0,0.00019178,2]
[351048312,1738307437524,-500.0,0.00019178,2]
[351048314,1738307437534,-500.0,0.00019178,2]
[351048316,1738307437543,-500.0,0.00019178,2]
[351048318,1738307437553,-500.0,0.00019178,2]
[351048320,1738307437562,-500.0,0.00019178,2]
[351048322,1738307437571,-500.0,0.00019178,2]
[351048324,1738307437580,-500.0,0.00019178,2]
[351048326,1738307437589,-500.0,0.00019178,2]
[351048328,1738307437599,-500.0,0.00019178,2]
[351048330,1738307437608,-500.0,0.00019178,2]
[351048332,1738307437617,-500.0,0.00019178,2]
[351048334,1738307437626,-500.0,0.00019178,2]
[351048336,1738307437635,-500.0,0.00019178,2]
[351048338,1738307437645,-562.37,0.00019178,2]
[351048340,1738307437654,-500.0,0.00019178,2]
[351048342,1738307437663,-500.0,0.00019178,2]
[351048344,1738307437672,-500.0,0.00019178,2]
[351048346,1738307437681,-500.0,0.00019178,2]
[351048348,1738307437691,-500.0,0.00019178,2]
[351048350,1738307437700,-688.27659448,0.00019178,2]
[351048353,1738307437712,-21.27340552,0.00019178,2]
[351048355,1738307437722,-500.0,0.00019178,2]
[351048357,1738307437731,-157.92558468,0.00019178,2]
[351048361,1738307437759,-342.07441532,0.00019178,2]
[351048363,1738307437768,-500.0,0.00019178,2]
[351048364,1738307437778,-423.15371289,0.00019178,2]
[351048367,1738307437787,-500.0,0.00019178,2]
[351048368,1738307437796,-249.42586741,0.00019178,2]
[351048371,1738307437807,-250.57413259,0.00019178,2]
[351048373,1738307437817,-500.0,0.00019178,2]
[351048375,1738307437826,-412.52586746,0.00019178,2]
[351048377,1738307437837,-192.76413254,0.00019178,2]
[351048379,1738307437846,-249.16586746,0.00019178,2]
[351048382,1738307437865,-409.75413254,0.00019178,2]
[351048384,1738307437874,-500.0,0.00019178,2]
[351048386,1738307437884,-500.0,0.00019178,2]
[351048388,1738307437893,-500.0,0.00019178,2]
[351048390,1738307437902,-500.0,0.00019178,2]
[351048392,1738307437911,-500.0,0.00019178,2]
[351048394,1738307437920,-638.47,0.00019178,2]
[351048396,1738307437929,-500.0,0.00019178,2]
[351048398,1738307437939,-500.0,0.00019178,2]
[351048400,1738307437948,-500.0,0.00019178,2]
[351048402,1738307437957,-500.0,0.00019178,2]
[351048404,1738307437966,-500.0,0.00019178,2]
[351048406,1738307437976,-500.0,0.00019178,2]
[351048408,1738307437987,-500.0,0.00019178,2]
[351048410,1738307437997,-500.0,0.00019178,2]
[351048412,1738307438007,-500.0,0.00019178,2]
[351048414,1738307438016,-500.0,0.00019178,2]
[351048416,1738307438025,-540.19,0.00019178,2]
[351048418,1738307438035,-500.0,0.00019178,2]
[351048420,1738307438043,-500.0,0.00019178,2]
[351048422,1738307438053,-500.0,0.00019178,2]
[351048424,1738307438062,-500.0,0.00019178,2]
[351048426,1738307438071,-671.26,0.00019178,2]
[351048428,1738307438079,-552.20508024,0.00019178,2]
[351048430,1738307438089,-500.0,0.00019178,2]
[351048432,1738307438097,-500.0,0.00019178,2]
[351048434,1738307438107,-500.0,0.00019178,2]
[351048436,1738307438116,-500.0,0.00019178,2]
[351048438,1738307438125,-500.0,0.00019178,2]
[351048440,1738307438134,-500.0,0.00019178,2]
[351048442,1738307438143,-500.0,0.00019178,2]
[351048444,1738307438152,-500.0,0.00019178,2]
[351048446,1738307438162,-500.0,0.00019178,2]
[351048448,1738307438171,-598.39,0.00019178,2]
[351048450,1738307438180,-500.0,0.00019178,2]
[351048452,1738307438189,-500.0,0.00019178,2]
[351048454,1738307438198,-500.0,0.00019178,2]
[351048456,1738307438207,-500.0,0.00019178,2]
[351048458,1738307438218,-500.0,0.00019178,2]
[351048460,1738307438227,-500.0,0.00019178,2]
[351048461,1738307438238,-500.0,0.00019178,2]
[351048464,1738307438247,-500.0,0.00019178,2]
[351048466,1738307438256,-609.55,0.00019178,2]
[351048468,1738307438266,-500.0,0.00019178,2]
[351048470,1738307438275,-500.0,0.00019178,2]
[351048472,1738307438285,-500.0,0.00019178,2]
[351048474,1738307438294,-500.0,0.00019178,2]
[351048476,1738307438304,-500.0,0.00019178,2]
[351048478,1738307438313,-500.0,0.00019178,2]
[351048480,1738307438323,-797.57,0.00019178,2]
[351048482,1738307438332,-500.0,0.00019178,2]
[351048484,1738307438342,-500.0,0.00019178,2]
[351048486,1738307438352,-500.0,0.00019178,2]
[351048488,1738307438362,-500.0,0.00019178,2]
[351048490,1738307438372,-500.0,0.00019178,2]
[351048492,1738307438382,-500.0,0.00019178,2]
[351048494,1738307438394,-194.5438561,0.00019178,2]
[351048496,1738307438405,-500.0,0.00019178,2]
[351048498,1738307438415,-500.0,0.00019178,2]
[351048500,1738307438424,-500.0,0.00019178,2]
[351048502,1738307438434,-313.06693112,0.00019178,2]
[351048601,1738307439453,-395.98084323,0.00019078,2]
[351048621,1738307439632,-266.28787193,0.00019078,2]
[351048623,1738307439643,-562.4298594,0.00019078,2]
[351048625,1738307439655,-3042.4579206,0.00019078,2]
[351048640,1738307439787,-2211.19606061,0.00019078,2]
[351048642,1738307439800,-6341.58513254,0.00019078,2]
[351048644,1738307439810,-186.93306888,0.00019178,2]
[351048646,1738307439819,-500.0,0.00019178,2]
[351048649,1738307439830,-500.0,0.00019178,2]
[351048651,1738307439839,-673.55,0.00019178,2]
[351048653,1738307439849,-500.0,0.00019178,2]
[351048655,1738307439858,-671.39,0.00019178,2]
[351048657,1738307439867,-500.0,0.00019178,2]
[351048659,1738307439877,-500.0,0.00019178,2]
[351048661,1738307439886,-601.83,0.00019178,2]
[351048663,1738307439895,-988.13,0.00019178,2]
[351048665,1738307439905,-500.0,0.00019178,2]
[351048667,1738307439914,-500.0,0.00019178,2]
[351048669,1738307439923,-577.42,0.00019178,2]
[351048671,1738307439933,-500.0,0.00019178,2]
[351048673,1738307439942,-500.0,0.00019178,2]
[351048675,1738307439952,-500.0,0.00019178,2]
[351048677,1738307439961,-500.0,0.00019178,2]
[351048679,1738307439970,-24.71179858,0.00019178,2]
[351048708,1738307440236,-286.84899058,0.00019178,2]
[351048710,1738307440247,-500.0,0.00019178,2]
[351048712,1738307440257,-604.17,0.00019178,2]
[351048714,1738307440266,-500.0,0.00019178,2]
[351048716,1738307440277,-500.0,0.00019178,2]
[351048718,1738307440287,-500.0,0.00019178,2]
[351048721,1738307440297,-508.69,0.00019178,2]
[351048723,1738307440306,-474.49822282,0.00019178,2]
[351048725,1738307440315,-500.0,0.00019178,2]
[351048727,1738307440325,-500.0,0.00019178,2]
[351048729,1738307440335,-500.0,0.00019178,2]
[351048731,1738307440345,-500.0,0.00019178,2]
[351048733,1738307440355,-500.0,0.00019178,2]
[351048735,1738307440364,-500.0,0.00019178,2]
[351048737,1738307440373,-500.0,0.00019178,2]
[351048739,1738307440384,-500.0,0.00019178,2]